[Event "Titled Tuesday Blitz June 1 2021"]
[White "Jarovinsky, Alexey"]
[Black "Heinemann, Josefine"]
[WhiteFideId "14115131"]
[BlackFideId "12900460"]
[WhiteElo "2446"]
[BlackElo "2300"]
[Result "1-0"]
[Round "10"]
[TimeControl "180+1"]
[Date "2021.06.01"]
[WhiteClock "0:00:03"]
[BlackClock "0:00:02"]

1. Nc3 {[%clk 0:03:00]}  d5 {[%clk 0:02:58]} 2. e4 {[%clk 0:03:00]}  d4 {[%clk 0:02:57]} 3. Nce2 {[%clk 0:03:00]}  c5 {[%clk 0:02:57]} 4. Ng3 {[%clk 0:02:56]}  Nc6 {[%clk 0:02:57]} 5. Bb5 {[%clk 0:02:55]}  Bd7 {[%clk 0:02:55]} 6. f4 {[%clk 0:02:46]}  e6 {[%clk 0:02:51]} 7. Nf3 {[%clk 0:02:45]}  Bd6 {[%clk 0:02:42]} 8. Bxc6 {[%clk 0:02:44]}  Bxc6 {[%clk 0:02:41]} 9. d3 {[%clk 0:02:43]}  Qc7 {[%clk 0:02:34]} 10. e5 {[%clk 0:02:17]}  Be7 {[%clk 0:02:33]} 11. O-O {[%clk 0:02:13]}  Nh6 {[%clk 0:02:20]} 12. Qe2 {[%clk 0:02:07]}  O-O {[%clk 0:02:07]} 13. Bd2 {[%clk 0:02:05]}  Rae8 {[%clk 0:02:03]} 14. Rae1 {[%clk 0:01:56]}  Bd8 {[%clk 0:01:47]} 15. b3 {[%clk 0:01:53]}  b6 {[%clk 0:01:45]} 16. a4 {[%clk 0:01:45]}  Nf5 {[%clk 0:01:28]} 17. Ne4 {[%clk 0:01:41]}  h5 {[%clk 0:01:14]} 18. Ng3 {[%clk 0:01:24]}  Nxg3 {[%clk 0:01:07]} 19. hxg3 {[%clk 0:01:24]}  g6 {[%clk 0:01:02]} 20. Bc1 {[%clk 0:00:59]}  Be7 {[%clk 0:01:01]} 21. Nd2 {[%clk 0:00:59]}  a6 {[%clk 0:01:00]} 22. g4 {[%clk 0:00:51]}  hxg4 {[%clk 0:00:58]} 23. Qxg4 {[%clk 0:00:51]}  Kg7 {[%clk 0:00:58]} 24. Ne4 {[%clk 0:00:43]}  Rh8 {[%clk 0:00:53]} 25. f5 {[%clk 0:00:20]}  exf5 {[%clk 0:00:52]} 26. Rxf5 {[%clk 0:00:19]}  Bd7 {[%clk 0:00:39]} 27. Rxf7+ {[%clk 0:00:11]}  Kxf7 {[%clk 0:00:40]} 28. e6+ {[%clk 0:00:11]}  Bxe6 {[%clk 0:00:35]} 29. Rf1+ {[%clk 0:00:10]}  Kg7 {[%clk 0:00:35]} 30. Qxe6 {[%clk 0:00:06]}  Bd8 {[%clk 0:00:31]} 31. Qg4 {[%clk 0:00:05]}  Qh2+ {[%clk 0:00:27]} 32. Kf2 {[%clk 0:00:05]}  Rhf8+ {[%clk 0:00:25]} 33. Ke2 {[%clk 0:00:05]}  Rxf1 {[%clk 0:00:24]} 34. Kxf1 {[%clk 0:00:06]}  Rf8+ {[%clk 0:00:19]} 35. Ke2 {[%clk 0:00:06]}  Qc7 {[%clk 0:00:15]} 36. g3 {[%clk 0:00:06]}  Qf7 {[%clk 0:00:13]} 37. Bf4 {[%clk 0:00:06]}  Bc7 {[%clk 0:00:11]} 38. Ng5 {[%clk 0:00:05]}  Qf5 {[%clk 0:00:07]} 39. Ne6+ {[%clk 0:00:04]}  Kg8 {[%clk 0:00:05]} 40. Qxf5 {[%clk 0:00:04]}  Rxf5 {[%clk 0:00:06]} 41. Nxc7 {[%clk 0:00:02]}  Kf7 {[%clk 0:00:03]} 42. Bd2 {[%clk 0:00:02]}  b5 {[%clk 0:00:03]} 43. Nxa6 {[%clk 0:00:02]}  bxa4 {[%clk 0:00:03]} 44. bxa4 {[%clk 0:00:03]}  Ke6 {[%clk 0:00:03]} 45. Nc7+ {[%clk 0:00:03]}  Kd6 {[%clk 0:00:03]} 46. Nb5+ {[%clk 0:00:03]}  Kc6 {[%clk 0:00:03]} 47. Na3 {[%clk 0:00:03]}  Rh5 {[%clk 0:00:03]} 48. Nc4 {[%clk 0:00:02]}  Rh2+ {[%clk 0:00:03]} 49. Kf3 {[%clk 0:00:02]}  Kb7 {[%clk 0:00:01]} 50. a5 {[%clk 0:00:02]}  Ka6 {[%clk 0:00:01]} 51. g4 {[%clk 0:00:03]}  Rh1 {[%clk 0:00:02]} 52. g5 {[%clk 0:00:03]}  Rg1 {[%clk 0:00:02]} 53. Ke4 {[%clk 0:00:03]}  Rg2 {[%clk 0:00:02]} 54. Kd5 {[%clk 0:00:03]}  Re2 {[%clk 0:00:02]} 55. Kxc5 {[%clk 0:00:03]}  Rg2 {[%clk 0:00:02]} 56. Kxd4 {[%clk 0:00:03]}  Rg4+ {[%clk 0:00:02]} 57. Kc5 {[%clk 0:00:03]} 1-0


[Site "https://www.chess.com"]

[Event "Titled Tuesday Blitz June 1 2021"]
[White "Korchmar, Vasiliy"]
[Black "Jakubowski, Krzysztof"]
[WhiteFideId "24131750"]
[BlackFideId "1112848"]
[WhiteElo "2370"]
[BlackElo "2462"]
[Result "1-0"]
[Round "10"]
[TimeControl "180+1"]
[Date "2021.06.01"]
[WhiteClock "0:00:14"]
[BlackClock "0:00:37"]

1. d4 {[%clk 0:03:00]}  Nf6 {[%clk 0:02:57]} 2. c4 {[%clk 0:03:00]}  e6 {[%clk 0:02:55]} 3. g3 {[%clk 0:03:00]}  d5 {[%clk 0:02:52]} 4. Bg2 {[%clk 0:03:00]}  Bb4+ {[%clk 0:02:51]} 5. Nd2 {[%clk 0:03:00]}  O-O {[%clk 0:02:49]} 6. Nf3 {[%clk 0:03:01]}  dxc4 {[%clk 0:02:47]} 7. Qc2 {[%clk 0:03:01]}  a5 {[%clk 0:02:43]} 8. a3 {[%clk 0:02:56]}  Bxd2+ {[%clk 0:02:39]} 9. Bxd2 {[%clk 0:02:57]}  b5 {[%clk 0:02:32]} 10. a4 {[%clk 0:02:57]}  c6 {[%clk 0:02:26]} 11. e4 {[%clk 0:02:57]}  Na6 {[%clk 0:02:13]} 12. e5 {[%clk 0:02:55]}  Nd5 {[%clk 0:02:08]} 13. Ng5 {[%clk 0:02:55]}  g6 {[%clk 0:02:07]} 14. Qe4 {[%clk 0:02:16]}  Kg7 {[%clk 0:01:34]} 15. Qh4 {[%clk 0:01:06]}  h6 {[%clk 0:01:30]} 16. Nxe6+ {[%clk 0:00:50]}  fxe6 {[%clk 0:01:12]} 17. Qxh6+ {[%clk 0:00:46]}  Kf7 {[%clk 0:01:11]} 18. Qh7+ {[%clk 0:00:38]}  Ke8 {[%clk 0:01:10]} 19. Qxg6+ {[%clk 0:00:38]}  Kd7 {[%clk 0:01:06]} 20. axb5 {[%clk 0:00:33]}  cxb5 {[%clk 0:01:04]} 21. Bxd5 {[%clk 0:00:21]}  exd5 {[%clk 0:01:00]} 22. Qd6+ {[%clk 0:00:20]}  Ke8 {[%clk 0:00:59]} 23. Qg6+ {[%clk 0:00:19]}  Kd7 {[%clk 0:00:45]} 24. Bg5 {[%clk 0:00:17]}  Qc7 {[%clk 0:00:37]} 25. e6+ {[%clk 0:00:14]} 1-0


[Site "https://www.chess.com"]

[Event "Titled Tuesday Blitz June 1 2021"]
[White "Krishna Teja, N"]
[Black "Langner, Ladislav"]
[WhiteFideId "5001498"]
[BlackFideId "300403"]
[WhiteElo "2278"]
[BlackElo "2346"]
[Result "1-0"]
[Round "10"]
[TimeControl "180+1"]
[Date "2021.06.01"]
[WhiteClock "0:00:27"]
[BlackClock "0:00:43"]

1. d4 {[%clk 0:03:00]}  Nf6 {[%clk 0:02:59]} 2. c4 {[%clk 0:03:00]}  g6 {[%clk 0:03:00]} 3. g3 {[%clk 0:03:00]}  Bg7 {[%clk 0:02:58]} 4. Bg2 {[%clk 0:02:58]}  d5 {[%clk 0:02:58]} 5. cxd5 {[%clk 0:02:51]}  Nxd5 {[%clk 0:02:59]} 6. Nf3 {[%clk 0:02:51]}  Nb6 {[%clk 0:02:58]} 7. O-O {[%clk 0:02:52]}  Nc6 {[%clk 0:02:57]} 8. e3 {[%clk 0:02:51]}  O-O {[%clk 0:02:57]} 9. Nc3 {[%clk 0:02:50]}  Re8 {[%clk 0:02:57]} 10. h3 {[%clk 0:02:39]}  e5 {[%clk 0:02:47]} 11. d5 {[%clk 0:02:38]}  Na5 {[%clk 0:02:39]} 12. Nd2 {[%clk 0:02:32]}  c6 {[%clk 0:02:09]} 13. dxc6 {[%clk 0:02:13]}  Nxc6 {[%clk 0:02:07]} 14. Qe2 {[%clk 0:02:01]}  Be6 {[%clk 0:02:05]} 15. Rd1 {[%clk 0:01:55]}  Qe7 {[%clk 0:02:03]} 16. b3 {[%clk 0:01:51]}  e4 {[%clk 0:01:56]} 17. Bb2 {[%clk 0:01:43]}  f5 {[%clk 0:01:55]} 18. Rac1 {[%clk 0:01:29]}  Ne5 {[%clk 0:01:50]} 19. Ba1 {[%clk 0:01:21]}  Nd3 {[%clk 0:01:49]} 20. Rb1 {[%clk 0:01:18]}  Rac8 {[%clk 0:01:36]} 21. Nb5 {[%clk 0:01:18]}  Rc2 {[%clk 0:01:33]} 22. Bxg7 {[%clk 0:01:13]}  Kxg7 {[%clk 0:01:34]} 23. a4 {[%clk 0:01:03]}  Nd5 {[%clk 0:01:28]} 24. Nd4 {[%clk 0:00:44]}  Nc3 {[%clk 0:01:24]} 25. Qf1 {[%clk 0:00:44]}  Ra2 {[%clk 0:01:14]} 26. Ra1 {[%clk 0:00:44]}  Nxd1 {[%clk 0:01:03]} 27. Rxa2 {[%clk 0:00:42]}  N1xf2 {[%clk 0:01:03]} 28. Qa1 {[%clk 0:00:35]}  Rc8 {[%clk 0:00:59]} 29. Nxf5+ {[%clk 0:00:33]}  Kf8 {[%clk 0:00:51]} 30. Qh8+ {[%clk 0:00:27]}  Bg8 {[%clk 0:00:43]} 31. Qxg8+ {[%clk 0:00:27]} 1-0


[Site "https://www.chess.com"]

[Event "Titled Tuesday Blitz June 1 2021"]
[White "Mazur, Stefan"]
[Black "Koganov, Mikhail"]
[WhiteFideId "14909332"]
[BlackFideId "2038676"]
[WhiteElo "2437"]
[BlackElo "2093"]
[Result "0-1"]
[Round "10"]
[TimeControl "180+1"]
[Date "2021.06.01"]
[WhiteClock "0:00:24"]
[BlackClock "0:01:20"]

1. e4 {[%clk 0:03:00]}  e5 {[%clk 0:02:59]} 2. Nf3 {[%clk 0:02:59]}  Nc6 {[%clk 0:02:59]} 3. Bb5 {[%clk 0:02:58]}  a6 {[%clk 0:02:59]} 4. Ba4 {[%clk 0:02:58]}  d6 {[%clk 0:02:59]} 5. O-O {[%clk 0:02:56]}  Bd7 {[%clk 0:02:58]} 6. c3 {[%clk 0:02:55]}  Nge7 {[%clk 0:02:57]} 7. d4 {[%clk 0:02:53]}  Ng6 {[%clk 0:02:57]} 8. Be3 {[%clk 0:02:47]}  Be7 {[%clk 0:02:56]} 9. Nbd2 {[%clk 0:02:18]}  O-O {[%clk 0:02:54]} 10. Re1 {[%clk 0:02:14]}  b5 {[%clk 0:02:48]} 11. Bc2 {[%clk 0:02:13]}  Nh4 {[%clk 0:02:40]} 12. Nxh4 {[%clk 0:02:07]}  Bxh4 {[%clk 0:02:40]} 13. a4 {[%clk 0:01:48]}  Bf6 {[%clk 0:02:24]} 14. Qe2 {[%clk 0:01:40]}  b4 {[%clk 0:02:21]} 15. d5 {[%clk 0:01:34]}  bxc3 {[%clk 0:02:21]} 16. bxc3 {[%clk 0:01:33]}  Ne7 {[%clk 0:02:20]} 17. a5 {[%clk 0:01:20]}  Ng6 {[%clk 0:02:07]} 18. g3 {[%clk 0:01:20]}  Bg5 {[%clk 0:02:06]} 19. Bd3 {[%clk 0:01:19]}  Bxe3 {[%clk 0:02:06]} 20. Qxe3 {[%clk 0:01:17]}  f5 {[%clk 0:02:03]} 21. exf5 {[%clk 0:01:15]}  Bxf5 {[%clk 0:02:01]} 22. Bxf5 {[%clk 0:01:15]}  Rxf5 {[%clk 0:02:01]} 23. c4 {[%clk 0:01:08]}  Qd7 {[%clk 0:01:57]} 24. Rec1 {[%clk 0:01:00]}  Raf8 {[%clk 0:01:55]} 25. c5 {[%clk 0:00:56]}  Rxf2 {[%clk 0:01:33]} 26. Qxf2 {[%clk 0:00:53]}  Rxf2 {[%clk 0:01:34]} 27. Kxf2 {[%clk 0:00:54]}  Qf5+ {[%clk 0:01:34]} 28. Ke3 {[%clk 0:00:48]}  Qg5+ {[%clk 0:01:28]} 29. Kd3 {[%clk 0:00:29]}  e4+ {[%clk 0:01:27]} 30. Nxe4 {[%clk 0:00:29]}  Qxd5+ {[%clk 0:01:26]} 31. Ke3 {[%clk 0:00:29]}  Ne5 {[%clk 0:01:23]} 32. cxd6 {[%clk 0:00:24]}  Qd3+ {[%clk 0:01:23]} 33. Kf4 {[%clk 0:00:25]}  Ng6+ {[%clk 0:01:21]} 34. Kf5 {[%clk 0:00:24]}  Qd5+ {[%clk 0:01:20]} 0-1


[Site "https://www.chess.com"]

[Event "Titled Tuesday Blitz June 1 2021"]
[White "Mikhalsky, Vladimir"]
[Black "Woodward, Andy"]
[WhiteFideId "14144352"]
[BlackFideId "30953499"]
[WhiteElo "2280"]
[BlackElo "2604"]
[Result "0-1"]
[Round "10"]
[TimeControl "180+1"]
[Date "2021.06.01"]
[WhiteClock "0:01:24"]
[BlackClock "0:01:28"]

1. e4 {[%clk 0:02:59]}  c5 {[%clk 0:02:59]} 2. Nf3 {[%clk 0:02:58]}  d6 {[%clk 0:02:59]} 3. c3 {[%clk 0:02:57]}  Nf6 {[%clk 0:02:59]} 4. Bd3 {[%clk 0:02:58]}  Nc6 {[%clk 0:02:59]} 5. O-O {[%clk 0:02:57]}  g6 {[%clk 0:02:55]} 6. Bc2 {[%clk 0:02:57]}  Bg7 {[%clk 0:02:55]} 7. d4 {[%clk 0:02:58]}  cxd4 {[%clk 0:02:56]} 8. cxd4 {[%clk 0:02:57]}  O-O {[%clk 0:02:57]} 9. a3 {[%clk 0:02:56]}  a6 {[%clk 0:02:56]} 10. Nc3 {[%clk 0:02:56]}  b5 {[%clk 0:02:56]} 11. h3 {[%clk 0:02:49]}  Bb7 {[%clk 0:02:55]} 12. Be3 {[%clk 0:02:42]}  Rc8 {[%clk 0:02:50]} 13. Qe2 {[%clk 0:02:39]}  Na5 {[%clk 0:02:49]} 14. Nd2 {[%clk 0:02:26]}  Qd7 {[%clk 0:02:41]} 15. Rfc1 {[%clk 0:02:20]}  Nc4 {[%clk 0:02:34]} 16. Nxc4 {[%clk 0:02:19]}  Rxc4 {[%clk 0:02:35]} 17. Bb3 {[%clk 0:02:17]}  Rc7 {[%clk 0:02:32]} 18. d5 {[%clk 0:02:13]}  Rfc8 {[%clk 0:02:31]} 19. Bb6 {[%clk 0:02:11]}  Nh5 {[%clk 0:02:21]} 20. Bxc7 {[%clk 0:02:10]}  Rxc7 {[%clk 0:02:21]} 21. g3 {[%clk 0:02:07]}  Bd4 {[%clk 0:02:14]} 22. Kg2 {[%clk 0:02:03]}  Ba7 {[%clk 0:02:09]} 23. Nd1 {[%clk 0:01:56]}  Qc8 {[%clk 0:02:07]} 24. Qd2 {[%clk 0:01:55]}  Nf6 {[%clk 0:02:02]} 25. f3 {[%clk 0:01:51]}  Kg7 {[%clk 0:01:58]} 26. Rxc7 {[%clk 0:01:50]}  Qxc7 {[%clk 0:01:59]} 27. Rc1 {[%clk 0:01:48]}  Qb6 {[%clk 0:01:59]} 28. Nf2 {[%clk 0:01:47]}  h5 {[%clk 0:01:59]} 29. h4 {[%clk 0:01:47]}  a5 {[%clk 0:01:57]} 30. Ba2 {[%clk 0:01:44]}  b4 {[%clk 0:01:56]} 31. axb4 {[%clk 0:01:44]}  axb4 {[%clk 0:01:57]} 32. Bc4 {[%clk 0:01:44]}  Nd7 {[%clk 0:01:46]} 33. Qe2 {[%clk 0:01:43]}  Ne5 {[%clk 0:01:45]} 34. f4 {[%clk 0:01:42]}  Nxc4 {[%clk 0:01:45]} 35. Rxc4 {[%clk 0:01:41]}  Ba6 {[%clk 0:01:45]} 36. Rxb4 {[%clk 0:01:32]}  Bxe2 {[%clk 0:01:39]} 37. Rxb6 {[%clk 0:01:31]}  Bxb6 {[%clk 0:01:39]} 38. e5 {[%clk 0:01:28]}  Bc4 {[%clk 0:01:38]} 39. exd6 {[%clk 0:01:26]}  Bxd5+ {[%clk 0:01:38]} 40. Kh3 {[%clk 0:01:26]}  Bxf2 {[%clk 0:01:36]} 41. d7 {[%clk 0:01:26]}  Bb6 {[%clk 0:01:31]} 42. f5 {[%clk 0:01:25]}  gxf5 {[%clk 0:01:31]} 43. b4 {[%clk 0:01:25]}  Bc6 {[%clk 0:01:31]} 44. b5 {[%clk 0:01:25]}  Bxd7 {[%clk 0:01:31]} 45. Kg2 {[%clk 0:01:24]}  Bxb5 {[%clk 0:01:31]} 46. Kf3 {[%clk 0:01:24]}  Bc6+ {[%clk 0:01:31]} 47. Kf4 {[%clk 0:01:24]}  Kf6 {[%clk 0:01:31]} 48. g4 {[%clk 0:01:23]}  e5+ {[%clk 0:01:29]} 49. Kg3 {[%clk 0:01:23]}  f4+ {[%clk 0:01:28]} 50. Kh3 {[%clk 0:01:23]}  Bd7 {[%clk 0:01:27]} 51. Kg2 {[%clk 0:01:22]}  hxg4 {[%clk 0:01:28]} 52. h5 {[%clk 0:01:22]}  e4 {[%clk 0:01:28]} 53. h6 {[%clk 0:01:23]}  Kg6 {[%clk 0:01:28]} 54. h7 {[%clk 0:01:23]}  Kxh7 {[%clk 0:01:28]} 55. Kh2 {[%clk 0:01:23]}  f5 {[%clk 0:01:28]} 56. Kg2 {[%clk 0:01:23]}  Kg6 {[%clk 0:01:29]} 57. Kh1 {[%clk 0:01:23]}  Kg5 {[%clk 0:01:29]} 58. Kg2 {[%clk 0:01:24]}  e3 {[%clk 0:01:30]} 59. Kh1 {[%clk 0:01:24]}  f3 {[%clk 0:01:30]} 60. Kh2 {[%clk 0:01:24]}  f4 {[%clk 0:01:30]} 61. Kh1 {[%clk 0:01:24]}  g3 {[%clk 0:01:30]} 62. Kg1 {[%clk 0:01:24]}  Kh4 {[%clk 0:01:30]} 63. Kh1 {[%clk 0:01:24]}  Kh3 {[%clk 0:01:30]} 64. Kg1 {[%clk 0:01:24]}  e2+ {[%clk 0:01:28]} 65. Kh1 {[%clk 0:01:24]}  g2# {[%clk 0:01:28]} 0-1


[Site "https://www.chess.com"]

[Event "Titled Tuesday Blitz June 1 2021"]
[White "Moroni, Luca Jr"]
[Black "Elgersma, Onno"]
[WhiteFideId "865834"]
[BlackFideId "1053531"]
[WhiteElo "2491"]
[BlackElo "2512"]
[Result "1-0"]
[Round "10"]
[TimeControl "180+1"]
[Date "2021.06.01"]
[WhiteClock "0:00:08"]
[BlackClock "0:00:02"]

1. d4 {[%clk 0:03:00]}  d5 {[%clk 0:03:00]} 2. c4 {[%clk 0:03:00]}  e6 {[%clk 0:03:00]} 3. Nc3 {[%clk 0:03:01]}  Nf6 {[%clk 0:03:01]} 4. cxd5 {[%clk 0:03:01]}  exd5 {[%clk 0:03:02]} 5. Bg5 {[%clk 0:03:01]}  c6 {[%clk 0:03:02]} 6. e3 {[%clk 0:03:02]}  Bd6 {[%clk 0:03:03]} 7. Bd3 {[%clk 0:03:02]}  O-O {[%clk 0:03:03]} 8. Nge2 {[%clk 0:02:57]}  h6 {[%clk 0:03:03]} 9. Bh4 {[%clk 0:02:57]}  Re8 {[%clk 0:03:04]} 10. Qc2 {[%clk 0:02:57]}  a5 {[%clk 0:03:04]} 11. a3 {[%clk 0:02:56]}  Na6 {[%clk 0:03:04]} 12. Bg3 {[%clk 0:02:44]}  Nc7 {[%clk 0:03:03]} 13. Bxd6 {[%clk 0:02:32]}  Qxd6 {[%clk 0:03:02]} 14. Ng3 {[%clk 0:02:32]}  h5 {[%clk 0:01:52]} 15. Na4 {[%clk 0:02:22]}  h4 {[%clk 0:01:42]} 16. Ne2 {[%clk 0:01:51]}  Ne6 {[%clk 0:01:27]} 17. Nb6 {[%clk 0:01:44]}  Rb8 {[%clk 0:01:25]} 18. Qc3 {[%clk 0:01:40]}  Ng5 {[%clk 0:01:10]} 19. Qxa5 {[%clk 0:01:29]}  h3 {[%clk 0:01:09]} 20. g3 {[%clk 0:01:11]}  Nf3+ {[%clk 0:01:08]} 21. Kf1 {[%clk 0:01:02]}  Bg4 {[%clk 0:01:05]} 22. Qc5 {[%clk 0:00:48]}  Qxc5 {[%clk 0:00:31]} 23. dxc5 {[%clk 0:00:49]}  Nd2+ {[%clk 0:00:20]} 24. Ke1 {[%clk 0:00:48]}  Nfe4 {[%clk 0:00:20]} 25. Bxe4 {[%clk 0:00:45]}  Nxe4 {[%clk 0:00:18]} 26. Nd4 {[%clk 0:00:44]}  Ng5 {[%clk 0:00:17]} 27. b4 {[%clk 0:00:36]}  Re4 {[%clk 0:00:17]} 28. Kd2 {[%clk 0:00:35]}  Rbe8 {[%clk 0:00:17]} 29. Kc3 {[%clk 0:00:27]}  Nf3 {[%clk 0:00:12]} 30. Nxf3 {[%clk 0:00:26]}  Bxf3 {[%clk 0:00:13]} 31. Rhe1 {[%clk 0:00:26]}  f5 {[%clk 0:00:13]} 32. Kd2 {[%clk 0:00:25]}  g5 {[%clk 0:00:13]} 33. Rab1 {[%clk 0:00:17]}  Kf7 {[%clk 0:00:12]} 34. a4 {[%clk 0:00:17]}  d4 {[%clk 0:00:07]} 35. b5 {[%clk 0:00:09]}  dxe3+ {[%clk 0:00:06]} 36. Rxe3 {[%clk 0:00:10]}  cxb5 {[%clk 0:00:04]} 37. axb5 {[%clk 0:00:09]}  Rd4+ {[%clk 0:00:04]} 38. Kc3 {[%clk 0:00:09]}  Rxe3+ {[%clk 0:00:04]} 39. fxe3 {[%clk 0:00:09]}  Re4 {[%clk 0:00:04]} 40. Nc4 {[%clk 0:00:09]}  Be2 {[%clk 0:00:02]} 41. Nd6+ {[%clk 0:00:08]} 1-0


[Site "https://www.chess.com"]

[Event "Titled Tuesday Blitz June 1 2021"]
[White "Nagy, Gabor"]
[Black "Makhnev, Denis"]
[WhiteFideId "737119"]
[BlackFideId "13707647"]
[WhiteElo "2562"]
[BlackElo "2549"]
[Result "1/2-1/2"]
[Round "10"]
[TimeControl "180+1"]
[Date "2021.06.01"]
[WhiteClock "0:00:16"]
[BlackClock "0:00:09"]

1. e4 {[%clk 0:03:00]}  e5 {[%clk 0:03:00]} 2. Nf3 {[%clk 0:03:01]}  Nc6 {[%clk 0:03:00]} 3. Bb5 {[%clk 0:02:58]}  a6 {[%clk 0:03:00]} 4. Ba4 {[%clk 0:02:59]}  Nf6 {[%clk 0:03:00]} 5. d4 {[%clk 0:02:59]}  b5 {[%clk 0:02:53]} 6. Bb3 {[%clk 0:02:52]}  Bd6 {[%clk 0:02:00]} 7. O-O {[%clk 0:02:46]}  Qe7 {[%clk 0:01:53]} 8. Nc3 {[%clk 0:02:21]}  Nxd4 {[%clk 0:01:39]} 9. Nxd4 {[%clk 0:02:06]}  exd4 {[%clk 0:01:38]} 10. Nd5 {[%clk 0:02:06]}  Nxd5 {[%clk 0:01:31]} 11. exd5 {[%clk 0:02:07]}  O-O {[%clk 0:01:24]} 12. Qxd4 {[%clk 0:02:04]}  Be5 {[%clk 0:01:24]} 13. Qd3 {[%clk 0:02:00]}  d6 {[%clk 0:01:23]} 14. c3 {[%clk 0:02:01]}  Qh4 {[%clk 0:01:18]} 15. f4 {[%clk 0:01:59]}  Bf6 {[%clk 0:01:17]} 16. Bd2 {[%clk 0:01:57]}  g6 {[%clk 0:01:09]} 17. Rae1 {[%clk 0:01:54]}  Bf5 {[%clk 0:01:09]} 18. Qf3 {[%clk 0:01:53]}  Rfe8 {[%clk 0:01:07]} 19. h3 {[%clk 0:01:51]}  h5 {[%clk 0:01:03]} 20. Re3 {[%clk 0:01:37]}  Rxe3 {[%clk 0:00:40]} 21. Qxe3 {[%clk 0:01:35]}  Bg7 {[%clk 0:00:41]} 22. Be1 {[%clk 0:01:29]}  Qd8 {[%clk 0:00:41]} 23. Bf2 {[%clk 0:01:28]}  Bf6 {[%clk 0:00:39]} 24. Re1 {[%clk 0:01:27]}  a5 {[%clk 0:00:38]} 25. Bd1 {[%clk 0:01:23]}  h4 {[%clk 0:00:37]} 26. Qd2 {[%clk 0:01:15]}  Qd7 {[%clk 0:00:26]} 27. Bd4 {[%clk 0:01:13]}  Bxd4+ {[%clk 0:00:26]} 28. Qxd4 {[%clk 0:01:14]}  Re8 {[%clk 0:00:25]} 29. Rxe8+ {[%clk 0:01:14]}  Qxe8 {[%clk 0:00:26]} 30. Kf2 {[%clk 0:01:15]}  Qe7 {[%clk 0:00:20]} 31. Be2 {[%clk 0:01:09]}  Bd7 {[%clk 0:00:20]} 32. a3 {[%clk 0:01:04]}  Kh7 {[%clk 0:00:19]} 33. b4 {[%clk 0:01:03]}  axb4 {[%clk 0:00:19]} 34. axb4 {[%clk 0:01:03]}  f6 {[%clk 0:00:14]} 35. Bd3 {[%clk 0:01:01]}  Kg7 {[%clk 0:00:14]} 36. Qe4 {[%clk 0:00:52]}  Qf7 {[%clk 0:00:13]} 37. Qd4 {[%clk 0:00:50]}  Kh6 {[%clk 0:00:12]} 38. f5 {[%clk 0:00:46]}  g5 {[%clk 0:00:11]} 39. Be4 {[%clk 0:00:36]}  Qe7 {[%clk 0:00:10]} 40. g4 {[%clk 0:00:31]}  hxg3+ {[%clk 0:00:08]} 41. Kxg3 {[%clk 0:00:32]}  Kg7 {[%clk 0:00:07]} 42. h4 {[%clk 0:00:30]}  gxh4+ {[%clk 0:00:07]} 43. Kxh4 {[%clk 0:00:31]}  Qf8 {[%clk 0:00:08]} 44. Bd3 {[%clk 0:00:27]}  Qh8+ {[%clk 0:00:08]} 45. Kg3 {[%clk 0:00:27]}  Qh6 {[%clk 0:00:07]} 46. Qf4 {[%clk 0:00:24]}  Qh1 {[%clk 0:00:06]} 47. Qe3 {[%clk 0:00:21]}  Kf8 {[%clk 0:00:05]} 48. Qd4 {[%clk 0:00:18]}  Qe1+ {[%clk 0:00:03]} 49. Kg2 {[%clk 0:00:18]}  Kf7 {[%clk 0:00:04]} 50. Qe4 {[%clk 0:00:17]}  Qxe4+ {[%clk 0:00:03]} 51. Bxe4 {[%clk 0:00:18]}  Kg7 {[%clk 0:00:04]} 52. Kg3 {[%clk 0:00:18]}  Kh6 {[%clk 0:00:04]} 53. Kf4 {[%clk 0:00:19]}  Kh5 {[%clk 0:00:04]} 54. Bd3 {[%clk 0:00:19]}  Kh4 {[%clk 0:00:04]} 55. Bf1 {[%clk 0:00:19]}  Be8 {[%clk 0:00:04]} 56. Bg2 {[%clk 0:00:18]}  Bf7 {[%clk 0:00:04]} 57. Bf1 {[%clk 0:00:17]}  Be8 {[%clk 0:00:04]} 58. Bg2 {[%clk 0:00:17]}  Bf7 {[%clk 0:00:04]} 59. Bf1 {[%clk 0:00:18]}  Bxd5 {[%clk 0:00:05]} 60. Bxb5 {[%clk 0:00:18]}  Kh3 {[%clk 0:00:05]} 61. Bf1+ {[%clk 0:00:18]}  Kh2 {[%clk 0:00:05]} 62. c4 {[%clk 0:00:18]}  Bf7 {[%clk 0:00:04]} 63. Bd3 {[%clk 0:00:18]}  Kg1 {[%clk 0:00:05]} 64. Ke3 {[%clk 0:00:18]}  Kg2 {[%clk 0:00:05]} 65. Kd4 {[%clk 0:00:19]}  Kg3 {[%clk 0:00:04]} 66. Ke3 {[%clk 0:00:17]}  Be8 {[%clk 0:00:03]} 67. c5 {[%clk 0:00:16]}  dxc5 {[%clk 0:00:03]} 68. bxc5 {[%clk 0:00:17]}  Bd7 {[%clk 0:00:04]} 69. Be4 {[%clk 0:00:17]}  Kg4 {[%clk 0:00:04]} 70. Kd4 {[%clk 0:00:15]}  Bxf5 {[%clk 0:00:04]} 71. Bxf5+ {[%clk 0:00:15]}  Kxf5 {[%clk 0:00:05]} 72. Kd5 {[%clk 0:00:16]}  Kg6 {[%clk 0:00:03]} 73. Kc6 {[%clk 0:00:16]}  f5 {[%clk 0:00:04]} 74. Kxc7 {[%clk 0:00:17]}  f4 {[%clk 0:00:05]} 75. Kb7 {[%clk 0:00:14]}  f3 {[%clk 0:00:06]} 76. c6 {[%clk 0:00:14]}  f2 {[%clk 0:00:07]} 77. c7 {[%clk 0:00:15]}  f1=Q {[%clk 0:00:08]} 78. c8=Q {[%clk 0:00:15]}  Qf3+ {[%clk 0:00:08]} 79. Qc6+ {[%clk 0:00:15]}  Qxc6+ {[%clk 0:00:09]} 80. Kxc6 {[%clk 0:00:16]} 1/2-1/2


[Site "https://www.chess.com"]

[Event "Titled Tuesday Blitz June 1 2021"]
[White "Narva, Mai"]
[Black "Narayanan, Srinath"]
[WhiteFideId "4500512"]
[BlackFideId "5018420"]
[WhiteElo "2236"]
[BlackElo "2472"]
[Result "1-0"]
[Round "10"]
[TimeControl "180+1"]
[Date "2021.06.01"]
[WhiteClock "0:00:43"]
[BlackClock "0:01:32"]

1. e4 {[%clk 0:03:00]}  c5 {[%clk 0:02:59]} 2. Nf3 {[%clk 0:03:00]}  d6 {[%clk 0:02:58]} 3. d4 {[%clk 0:03:00]}  cxd4 {[%clk 0:02:59]} 4. Nxd4 {[%clk 0:03:01]}  Nf6 {[%clk 0:03:00]} 5. Nc3 {[%clk 0:03:01]}  Nc6 {[%clk 0:03:01]} 6. Bg5 {[%clk 0:02:58]}  e6 {[%clk 0:03:01]} 7. Qd2 {[%clk 0:02:58]}  a6 {[%clk 0:03:01]} 8. O-O-O {[%clk 0:02:58]}  Be7 {[%clk 0:03:01]} 9. f4 {[%clk 0:02:56]}  Bd7 {[%clk 0:03:00]} 10. Kb1 {[%clk 0:02:56]}  b5 {[%clk 0:03:00]} 11. Bxf6 {[%clk 0:02:42]}  gxf6 {[%clk 0:02:59]} 12. Nxc6 {[%clk 0:02:41]}  Bxc6 {[%clk 0:03:00]} 13. f5 {[%clk 0:02:39]}  Qb6 {[%clk 0:02:48]} 14. fxe6 {[%clk 0:02:33]}  fxe6 {[%clk 0:02:49]} 15. Be2 {[%clk 0:02:28]}  b4 {[%clk 0:02:48]} 16. Bh5+ {[%clk 0:02:28]}  Kd8 {[%clk 0:02:46]} 17. Ne2 {[%clk 0:02:27]}  Bxe4 {[%clk 0:02:46]} 18. Nf4 {[%clk 0:02:23]}  e5 {[%clk 0:02:37]} 19. Rhe1 {[%clk 0:02:16]}  Qc6 {[%clk 0:02:08]} 20. Rxe4 {[%clk 0:01:37]}  Qxe4 {[%clk 0:02:07]} 21. Ne6+ {[%clk 0:01:36]}  Kc8 {[%clk 0:02:06]} 22. Bf3 {[%clk 0:01:34]}  Qc4 {[%clk 0:02:05]} 23. Bd5 {[%clk 0:01:31]}  Qg4 {[%clk 0:02:00]} 24. h3 {[%clk 0:01:27]}  Qf5 {[%clk 0:02:00]} 25. Qxb4 {[%clk 0:01:06]}  Ra7 {[%clk 0:01:52]} 26. Qb6 {[%clk 0:00:49]}  Rd7 {[%clk 0:01:33]} 27. Qc6+ {[%clk 0:00:44]}  Kb8 {[%clk 0:01:32]} 28. Qa8# {[%clk 0:00:43]} 1-0


[Site "https://www.chess.com"]